fUST/lending_fUST_20250113
["ID","MTS","AMOUNT","RATE_DAILY","PERIOD"]
[348744026,1736766634460,-500.0,0.0002082,3]
[348744027,1736766634470,-500.0,0.0002082,3]
[348744028,1736766634481,-295.58151305,0.0002082,3]
[348744029,1736766634491,-500.0,0.0002082,3]
[348744030,1736766634501,-500.0,0.0002082,3]
[348744031,1736766634511,-500.0,0.0002082,3]
[348744032,1736766634521,-500.0,0.0002082,3]
[348744033,1736766634531,-500.0,0.0002082,3]
[348744034,1736766634541,-500.0,0.0002082,3]
[348744035,1736766634551,-2788.86,0.00020821,3]
[348744036,1736766634561,-649.23,0.00020821,3]
[348744037,1736766634571,-500.0,0.00020821,3]
[348744038,1736766634581,-500.0,0.00020898,3]
[348744039,1736766634592,-293.933,0.00020899,2]
[348744040,1736766634602,-500.0,0.00020899,3]
[348744041,1736766634612,-500.0,0.00020899,3]
[348744042,1736766634622,-2084.97,0.00020899,3]
[348744043,1736766634632,-160.0,0.00020941,12]
[348744044,1736766634642,-1460.28,0.00020974,2]
[348744045,1736766634651,-850.06,0.00020974,3]
[348744046,1736766634661,-151.0,0.00020974,2]
[348744047,1736766634671,-151.0,0.00020974,2]
[348744048,1736766634680,-500.0,0.00020974,3]
[348744049,1736766634690,-500.0,0.00020974,3]
[348744050,1736766634700,-500.0,0.00020974,3]
[348744051,1736766634709,-500.0,0.00020974,3]
[348744052,1736766634719,-500.0,0.00020974,3]
[348744053,1736766634729,-500.0,0.00020974,3]
[348744054,1736766634738,-500.0,0.00020974,3]
[348744055,1736766634748,-500.0,0.00020974,3]
[348744056,1736766634758,-500.0,0.00020974,3]
[348744057,1736766634768,-3000.0,0.00021,2]
[348744058,1736766634778,-3000.0,0.0002101,2]
[348744059,1736766634788,-3932.603225,0.0002102,2]
[348744060,1736766634798,-500.0,0.00021028,3]
[348744061,1736766634807,-500.0,0.00021028,3]
[348744062,1736766634817,-500.0,0.00021028,3]
[348744063,1736766634827,-500.0,0.00021028,3]
[348744064,1736766634837,-500.0,0.00021028,3]
[348744065,1736766634849,-500.0,0.00021029,2]
[348744066,1736766634858,-1267.2,0.00021029,3]
[348744067,1736766634868,-166.25433667,0.00021033,2]
[348744068,1736766634878,-500.0,0.00021073,2]
[348744069,1736766634888,-500.0,0.00021073,2]
[348744070,1736766634898,-565.65253207,0.00021073,2]
[348744071,1736766634908,-151.02768372,0.00021073,2]
[348744072,1736766634918,-155.0421937,0.00021073,2]
[348744073,1736766634929,-160.03695812,0.00021073,2]
[348744074,1736766634938,-180.04899912,0.00021073,2]
[348744075,1736766634948,-165.70509514,0.00021073,2]
[348744076,1736766634958,-167.54559665,0.00021073,2]
[348744077,1736766634968,-217.37514992,0.00021073,2]
[348744078,1736766634977,-151.04110299,0.00021073,2]
[348744079,1736766634988,-500.0,0.00021073,2]
[348744080,1736766634998,-279.96041587,0.00021073,2]
[348744081,1736766635008,-167.54052494,0.00021073,2]
[348744082,1736766635018,-167.54053258,0.00021073,2]
[348744083,1736766635028,-266.14108267,0.00021073,2]
[348744084,1736766635038,-500.0,0.00021093,3]
[348744085,1736766635048,-500.0,0.00021094,3]
[348744086,1736766635057,-500.0,0.00021094,3]
[348744087,1736766635068,-500.0,0.00021094,3]
[348744088,1736766635079,-500.0,0.00021094,3]
[348744089,1736766635091,-500.0,0.00021094,3]
[348744090,1736766635100,-500.0,0.00021094,3]
[348744091,1736766635110,-500.0,0.00021094,3]
[348744092,1736766635119,-358.27970429,0.00021094,3]
[348744093,1736766635130,-500.0,0.00021094,3]
[348744094,1736766635139,-500.0,0.00021094,3]
[348744095,1736766635149,-500.0,0.00021094,3]
[348744096,1736766635160,-500.0,0.00021094,3]
[348744097,1736766635169,-500.0,0.00021094,3]
[348744098,1736766635179,-500.0,0.00021094,3]
[348744099,1736766635189,-500.0,0.00021094,3]
[348744100,1736766635199,-500.0,0.00021094,3]
[348744101,1736766635208,-500.0,0.00021094,3]
[348744102,1736766635218,-500.0,0.00021094,3]
[348744103,1736766635227,-500.0,0.00021094,3]
[348744104,1736766635237,-500.0,0.00021094,3]
[348744105,1736766635247,-500.0,0.00021094,3]
[348744106,1736766635257,-500.0,0.00021094,3]
[348744107,1736766635266,-500.0,0.00021094,3]
[348744108,1736766635276,-500.0,0.00021094,3]
[348744109,1736766635286,-500.0,0.00021094,3]
[348744110,1736766635295,-204.18445614,0.00021094,3]
[348744111,1736766635304,-500.0,0.00021094,3]
[348744112,1736766635314,-508.04,0.00021094,3]
[348744113,1736766635324,-500.0,0.00021094,3]
[348744114,1736766635334,-500.0,0.00021094,3]
[348744115,1736766635344,-500.0,0.00021094,3]
[348744116,1736766635354,-161.04013539,0.00021094,3]
[348744117,1736766635364,-500.0,0.00021094,3]
[348744118,1736766635373,-500.0,0.00021094,3]
[348744119,1736766635383,-500.0,0.00021094,3]
[348744120,1736766635392,-500.0,0.00021094,3]
[348744121,1736766635402,-500.0,0.00021094,3]
[348744122,1736766635411,-500.0,0.00021094,3]
[348744123,1736766635421,-500.0,0.00021094,3]
[348744124,1736766635430,-500.0,0.00021094,3]
[348744125,1736766635440,-500.0,0.00021094,3]
[348744126,1736766635449,-500.0,0.00021094,3]
[348744127,1736766635459,-500.0,0.00021094,3]
[348744128,1736766635469,-500.0,0.00021094,3]
[348744129,1736766635479,-239.04128221,0.00021094,3]
[348744130,1736766635488,-500.0,0.00021094,3]
[348744131,1736766635498,-500.0,0.00021094,3]
[348744132,1736766635508,-500.0,0.00021094,3]
[348744133,1736766635517,-500.0,0.00021094,3]
[348744134,1736766635527,-500.0,0.00021094,3]
[348744135,1736766635537,-500.0,0.00021094,3]
[348744136,1736766635547,-500.0,0.00021094,3]
[348744137,1736766635556,-500.0,0.00021094,3]
[348744138,1736766635566,-500.0,0.00021094,3]
[348744139,1736766635576,-500.0,0.00021094,3]
[348744140,1736766635585,-500.0,0.00021094,3]
[348744141,1736766635596,-500.0,0.00021094,3]
[348744142,1736766635605,-500.0,0.00021094,3]
[348744143,1736766635615,-500.0,0.00021094,3]
[348744144,1736766635624,-500.0,0.00021094,3]
[348744145,1736766635634,-219.02351462,0.00021094,3]
[348744146,1736766635643,-500.0,0.00021094,3]
[348744147,1736766635653,-502.66600945,0.00021094,3]
[348744148,1736766635663,-500.0,0.00021094,3]
[348744149,1736766635673,-500.0,0.00021094,3]
[348744150,1736766635683,-500.0,0.00021094,3]
[348744151,1736766635692,-500.0,0.00021094,3]
[348744152,1736766635702,-5760.43,0.00021094,3]
[348744153,1736766635712,-500.0,0.00021094,3]
[348744154,1736766635722,-500.0,0.00021094,3]
[348744155,1736766635732,-500.0,0.00021094,3]
[348744156,1736766635742,-500.0,0.00021094,3]
[348744157,1736766635752,-500.0,0.00021094,3]
[348744158,1736766635761,-648.56,0.00021094,3]
[348744159,1736766635772,-210.46,0.00021094,3]
[348744160,1736766635781,-204.103233,0.00021094,3]
[348744161,1736766635792,-536.04557566,0.00021094,3]
[348744162,1736766635801,-500.0,0.00021094,3]
[348744163,1736766635811,-500.0,0.00021094,3]
[348744164,1736766635821,-500.0,0.00021094,3]
[348744165,1736766635831,-500.0,0.00021094,3]
[348744166,1736766635840,-500.0,0.00021094,3]
[348744167,1736766635853,-388.77233549,0.00021094,3]
[348744168,1736766635863,-426.1562905,0.00021094,3]
[348744169,1736766635873,-500.0,0.00021094,3]
[348744170,1736766635883,-500.0,0.00021094,3]
[348744171,1736766635894,-500.0,0.00021094,3]
[348744172,1736766635904,-426.4439211,0.00021094,3]
[348744173,1736766635914,-500.0,0.00021094,3]
[348744174,1736766635923,-500.0,0.00021094,3]
[348744175,1736766635933,-500.0,0.00021094,3]
[348744176,1736766635943,-500.0,0.00021094,3]
[348744177,1736766635953,-503.13185661,0.00021094,3]
[348744178,1736766635963,-500.0,0.00021094,3]
[348744179,1736766635972,-2788.86,0.00021095,3]
[348744180,1736766635982,-649.23,0.00021095,3]
[348744181,1736766635991,-151.0,0.00021173,2]
[348744182,1736766636001,-500.0,0.00021173,3]
[348744183,1736766636011,-160.0,0.00021192,13]
[348744184,1736766636023,-163.56323286,0.00021192,5]
[348744185,1736766636033,-160.0,0.00021192,5]
[348744186,1736766636042,-500.0,0.00021231,9]
[348744187,1736766636052,-1460.28,0.00021248,2]
[348744188,1736766636061,-850.06,0.00021248,3]
[348744189,1736766636072,-261.96563202,0.00021248,3]
[348744190,1736766636084,-500.0,0.00021248,3]
[348744191,1736766636095,-500.0,0.00021248,3]
[348744192,1736766636105,-500.0,0.00021248,3]
[348744193,1736766636115,-500.0,0.00021248,3]
[348744194,1736766636126,-500.0,0.00021248,3]
[348744195,1736766636136,-500.0,0.00021248,3]
[348744196,1736766636146,-500.0,0.00021248,3]
[348744197,1736766636159,-500.0,0.00021248,3]
[348744198,1736766636241,-166.25433667,0.00021268,2]
[348744199,1736766636260,-500.0,0.00021302,3]
[348744200,1736766636270,-500.0,0.00021302,3]
[348744201,1736766636280,-500.0,0.00021302,3]
[348744202,1736766636290,-151.0,0.00021302,2]
[348744203,1736766636300,-151.0,0.00021302,2]
[348744204,1736766636315,-500.0,0.00021303,2]
[348744205,1736766636339,-1267.2,0.00021303,3]
[348744206,1736766636370,-420.0,0.00021354,2]
[348744207,1736766636402,-500.0,0.00021367,3]
[348744208,1736766636435,-187.86166759,0.00021367,2]
[348744209,1736766636465,-500.0,0.00021368,3]
[348744210,1736766636491,-500.0,0.00021368,3]
[348744211,1736766636517,-500.0,0.00021368,3]
[348744212,1736766636544,-500.0,0.00021368,3]
[348744213,1736766636575,-500.0,0.00021368,3]
[348744214,1736766636586,-500.0,0.00021368,3]
[348744215,1736766636599,-500.0,0.00021368,3]
[348744216,1736766636609,-500.0,0.00021368,3]
[348744217,1736766636618,-500.0,0.00021368,3]
[348744218,1736766636627,-500.0,0.00021368,3]
[348744219,1736766636637,-254.26854685,0.00021368,3]
[348744220,1736766637619,-245.73145315,0.00021368,3]
[348744221,1736766637628,-500.0,0.00021368,3]
[348744222,1736766637639,-500.0,0.00021368,3]
[348744223,1736766637650,-500.0,0.00021368,3]
[348744224,1736766637665,-500.0,0.00021368,3]
[348744225,1736766637676,-500.0,0.00021368,3]
[348744226,1736766637685,-500.0,0.00021368,3]
[348744227,1736766637695,-74.51537497,0.00021368,3]
[348744670,1736766641843,-500.0,0.00020546,3]
[348744672,1736766641855,-500.0,0.00020547,3]
[348744674,1736766641864,-500.0,0.0002082,3]
[348744676,1736766641874,-500.0,0.00020821,3]
[348744678,1736766641884,-500.0,0.00021095,3]
[348744680,1736766641893,-2084.97,0.00021173,3]
[348744682,1736766641902,-475.36462503,0.00021368,3]
[348744684,1736766641912,-181.15339361,0.00021368,2]
[348744685,1736766641921,-500.0,0.00021368,3]
[348744688,1736766641932,-500.0,0.00021368,3]
[348744689,1736766641941,-500.0,0.00021368,3]
[348744691,1736766641952,-500.0,0.00021368,3]
[348744694,1736766641961,-326.79554386,0.00021368,3]
[348744696,1736766641971,-576.86,0.00021368,3]
[348744698,1736766641980,-500.0,0.00021368,3]
[348744700,1736766641990,-299.90176397,0.00021368,3]
[348744702,1736766642002,-87.00169015,0.00021368,3]
[348744704,1736766642012,-500.0,0.00021368,3]
[348744706,1736766642021,-500.0,0.00021368,3]
[348744708,1736766642030,-500.0,0.00021368,3]
[348744710,1736766642040,-500.0,0.00021368,3]
[348744712,1736766642050,-500.0,0.00021368,3]
[348744714,1736766642060,-500.0,0.00021368,3]
[348744716,1736766642070,-500.0,0.00021368,3]
[348744718,1736766642081,-411.94876435,0.00021368,3]
[348744720,1736766642091,-500.0,0.00021368,3]
[348744722,1736766642102,-500.0,0.00021368,3]
[348744724,1736766642112,-500.0,0.00021368,3]
[348744726,1736766642123,-500.0,0.00021368,3]
[348744728,1736766642132,-5518.05190488,0.00021368,3]
[348744731,1736766642144,-242.37809512,0.00021368,3]
[348744733,1736766642155,-500.0,0.00021368,3]
[348744735,1736766642165,-500.0,0.00021368,3]
[348744736,1736766642175,-500.0,0.00021368,3]
[348744747,1736766642184,-500.0,0.00021368,3]
[348744749,1736766642269,-500.0,0.00021368,3]
[348744751,1736766642279,-500.0,0.00021368,3]
[348744753,1736766642289,-500.0,0.00021368,3]
[348744755,1736766642298,-500.0,0.00021368,3]
[348744757,1736766642307,-500.0,0.00021368,3]
[348744759,1736766642317,-500.0,0.00021368,3]
[348744761,1736766642326,-500.0,0.00021368,3]
[348744763,1736766642336,-2788.86,0.00021369,3]
[348744765,1736766642346,-595.31183396,0.00021369,3]
[348744767,1736766642359,-53.91816604,0.00021369,3]
[348744769,1736766642368,-500.0,0.00021369,3]
[348744771,1736766642378,-2084.97,0.00021447,3]
[348744773,1736766642388,-300.0,0.000215,9]
[348744775,1736766642397,-1460.28,0.00021522,2]
[348744777,1736766642407,-849.17088684,0.00021522,3]
[348744780,1736766642425,-0.88911316,0.00021522,3]
[348744782,1736766642435,-500.0,0.00021522,3]
[348744784,1736766642444,-500.0,0.00021522,3]
[348744787,1736766642454,-500.0,0.00021522,3]
[348744789,1736766642464,-500.0,0.00021522,3]
[348744791,1736766642473,-500.0,0.00021522,3]
[348744793,1736766642483,-500.0,0.00021522,3]
[348744795,1736766642492,-469.09,0.00021522,3]
[348744797,1736766642502,-500.0,0.00021522,3]
[348744799,1736766642512,-500.0,0.00021576,3]
[348744801,1736766642521,-500.0,0.00021577,2]
[348744803,1736766642530,-1267.2,0.00021577,3]
[348744805,1736766642540,-2662.82088734,0.000216,4]
[348744807,1736766642551,-1203.17911266,0.000216,4]
[348744809,1736766642560,-1000.0,0.00021621,2]
[348744811,1736766642569,-1000.0,0.00021621,2]
[348744813,1736766642579,-500.0,0.00021641,3]
[348744815,1736766642588,-615.23,0.00021642,3]
[348744817,1736766642598,-596.65,0.00021642,3]
[348744819,1736766642607,-500.0,0.00021642,3]
[348744821,1736766642616,-500.0,0.00021642,3]
[348744823,1736766642627,-500.0,0.00021642,3]
[348744825,1736766642636,-500.0,0.00021642,3]
[348744827,1736766642646,-500.0,0.00021642,3]
[348744829,1736766642655,-500.0,0.00021642,3]
[348744831,1736766642665,-500.0,0.00021642,3]
[348744833,1736766642674,-500.0,0.00021642,3]
[348744835,1736766642684,-500.0,0.00021642,3]
[348744837,1736766642693,-500.0,0.00021642,3]
[348744839,1736766642702,-500.0,0.00021642,3]
[348744841,1736766642712,-500.0,0.00021642,3]
[348744843,1736766642721,-467.66372433,0.00021642,3]
[348744845,1736766642731,-500.0,0.00021642,3]
[348744847,1736766642740,-500.0,0.00021642,3]
[348744849,1736766642750,-500.0,0.00021642,3]
[348744851,1736766642759,-500.0,0.00021642,3]
[348744853,1736766642769,-500.0,0.00021642,3]
[348744855,1736766642778,-500.0,0.00021642,3]
[348744857,1736766642787,-500.0,0.00021642,3]
[348744859,1736766642796,-500.0,0.00021642,3]
[348744861,1736766642805,-151.0,0.00021642,2]
[348744863,1736766642815,-500.0,0.00021642,3]
[348744866,1736766642825,-151.0,0.00021642,2]
[348744867,1736766642835,-500.0,0.00021642,3]
[348744870,1736766642845,-306.36,0.00021642,3]
[348744872,1736766642856,-500.0,0.00021642,3]
[348744874,1736766642866,-500.0,0.00021642,3]
[348744876,1736766642875,-500.0,0.00021642,3]
[348744878,1736766642884,-5760.43,0.00021642,3]
[348744880,1736766642894,-500.0,0.00021642,3]
[348744882,1736766642904,-500.0,0.00021642,3]
[348744884,1736766642915,-221.95616893,0.00021642,3]
[348744887,1736766642933,-497.82554026,0.00021642,3]
[348744890,1736766642950,-500.0,0.00021642,3]
[348744892,1736766642966,-500.0,0.00021642,3]
[348744895,1736766642980,-507.48236088,0.00021642,3]
[348744897,1736766642996,-500.0,0.00021642,3]
[348744900,1736766643011,-500.0,0.00021642,3]
[348744903,1736766643027,-2788.86,0.00021643,3]
[348744906,1736766643041,-649.23,0.00021643,3]
[348744910,1736766643058,-500.0,0.00021643,3]
[348744913,1736766643072,-2084.97,0.00021721,3]
[348744915,1736766643089,-1460.28,0.00021796,2]
[348744916,1736766643103,-850.06,0.00021796,3]
[348744917,1736766643120,-500.0,0.00021796,3]
[348744920,1736766643135,-500.0,0.00021796,3]
[348744922,1736766643147,-500.0,0.00021796,3]
[348744925,1736766643159,-500.0,0.00021796,3]
[348744927,1736766643171,-500.0,0.00021796,3]
[348744929,1736766643187,-500.0,0.00021796,3]
[348744932,1736766643202,-500.0,0.00021796,3]
[348744935,1736766643216,-500.0,0.0002185,3]
[348744939,1736766643232,-500.0,0.00021851,2]
[348744943,1736766643248,-1267.2,0.00021851,3]
[348744946,1736766643259,-783.95214402,0.000219,2]
[348744948,1736766643270,-500.0,0.00021915,3]
[348744951,1736766643283,-500.0,0.00021916,3]
[348744954,1736766643298,-500.0,0.00021916,3]
[348744959,1736766643313,-500.0,0.00021916,3]
[348744962,1736766643325,-500.0,0.00021916,3]
[348744965,1736766643337,-500.0,0.00021916,3]
[348744969,1736766643352,-500.0,0.00021916,3]
[348744971,1736766643364,-500.0,0.00021916,3]
[348744973,1736766643375,-209.21,0.00021916,3]
[348744975,1736766643387,-500.0,0.00021916,3]
[348744978,1736766643400,-500.0,0.00021916,3]
[348744980,1736766643413,-500.0,0.00021916,3]
[348744982,1736766643425,-151.0,0.00021916,2]
[348744985,1736766643437,-151.0,0.00021916,2]
[348744987,1736766643450,-151.0,0.00021916,2]
[348744989,1736766643462,-500.0,0.00021916,3]
[348744991,1736766643475,-221.490606,0.00021916,2]
[348744994,1736766643488,-221.490606,0.00021916,2]
[348744996,1736766643500,-500.0,0.00021916,3]
[348744998,1736766643513,-500.0,0.00021916,3]
[348745001,1736766643526,-500.0,0.00021916,3]
[348745003,1736766643539,-500.0,0.00021916,3]
[348745006,1736766643552,-500.0,0.00021916,3]
[348745008,1736766643564,-500.0,0.00021916,3]
[348745010,1736766643574,-500.0,0.00021916,3]
[348745012,1736766643584,-500.0,0.00021916,3]
[348745014,1736766643593,-500.0,0.00021916,3]
[348745016,1736766643605,-500.0,0.00021916,3]
[348745018,1736766643615,-5760.43,0.00021916,3]
[348745020,1736766643625,-320.51505322,0.00021916,3]
[348745022,1736766643635,-500.0,0.00021916,11]
[348745024,1736766643644,-500.0,0.00021916,3]
[348745026,1736766643654,-462.94586441,0.00021916,3]
[348745028,1736766643664,-514.17228202,0.00021916,3]
[348745030,1736766643673,-500.0,0.00021916,3]
[348745032,1736766643683,-500.0,0.00021916,3]
[348745034,1736766643693,-2788.86,0.00021917,3]
[348745036,1736766643702,-649.23,0.00021917,3]
[348745038,1736766643712,-500.0,0.00021917,3]
[348745040,1736766643721,-783.95214376,0.00021969,2]
[348745042,1736766643731,-151.0,0.00021995,7]
[348745044,1736766643741,-2084.97,0.00021995,3]
[348745046,1736766643750,-150.0,0.00022,2]
[348745048,1736766643760,-157.0,0.00022,2]
[348745066,1736766643770,-783.95214376,0.00022038,2]
[348745069,1736766643943,-1460.28,0.0002207,2]
[348745071,1736766643952,-850.06,0.0002207,3]
[348745073,1736766643963,-500.0,0.0002207,3]
[348745075,1736766643974,-500.0,0.0002207,3]
[348745077,1736766643984,-160.96,0.0002207,3]
[348745079,1736766643994,-500.0,0.0002207,3]
[348745081,1736766644005,-500.0,0.0002207,3]
[348745083,1736766644015,-500.0,0.0002207,3]
[348745085,1736766644026,-547.3,0.0002207,3]
[348745087,1736766644037,-783.95214376,0.00022107,2]
[348745089,1736766644047,-500.0,0.00022124,3]
[348745092,1736766644057,-151.0,0.00022124,7]
[348745095,1736766644068,-151.0,0.00022124,2]
[348745098,1736766644081,-500.0,0.00022125,2]
[348745100,1736766644091,-1267.2,0.00022125,3]
[348745102,1736766644102,-783.95214376,0.00022176,2]
[348745104,1736766644111,-500.0,0.00022189,3]
[348745106,1736766644122,-535.73,0.0002219,3]
[348745108,1736766644132,-171.03,0.0002219,3]
[348745110,1736766644141,-500.0,0.0002219,3]
[348745112,1736766644151,-500.0,0.0002219,3]
[348745114,1736766644163,-500.0,0.0002219,3]
[348745116,1736766644173,-500.0,0.0002219,3]
[348745118,1736766644183,-500.0,0.0002219,3]
[348745120,1736766644193,-500.0,0.0002219,3]
[348745122,1736766644203,-500.0,0.0002219,3]
[348745124,1736766644213,-500.0,0.0002219,3]
[348745126,1736766644223,-500.0,0.0002219,3]
[348745128,1736766644232,-500.0,0.0002219,3]
[348745130,1736766644243,-500.0,0.0002219,3]
[348745132,1736766644253,-500.0,0.0002219,3]
[348745134,1736766644263,-500.0,0.0002219,3]
[348745136,1736766644273,-500.0,0.0002219,3]
[348745138,1736766644283,-500.0,0.0002219,3]
[348745140,1736766644293,-983.96981444,0.0002219,3]
[348745146,1736766644346,-500.0,0.00020546,3]
[348745148,1736766644357,-500.0,0.00020546,3]
[348745150,1736766644366,-500.0,0.0002082,3]
[348745152,1736766644377,-4776.46018556,0.0002219,3]
[348745155,1736766644387,-500.0,0.0002219,3]
[348745157,1736766644397,-500.0,0.0002219,3]
[348745159,1736766644407,-2788.86,0.00022191,3]
[348745161,1736766644417,-649.23,0.00022191,3]
[348745163,1736766644427,-263.93,0.00022191,3]
[348745165,1736766644438,-157.0,0.00022192,2]
[348745167,1736766644447,-783.95214376,0.00022245,2]
[348745169,1736766644457,-2084.97,0.00022269,3]
[348745171,1736766644467,-783.95214376,0.00022314,2]
[348745173,1736766644476,-1460.28,0.00022344,2]
[348745175,1736766644486,-850.06,0.00022344,3]
[348745177,1736766644495,-500.0,0.00022344,3]
[348745179,1736766644506,-500.0,0.00022344,3]
[348745181,1736766644515,-178.63,0.00022344,3]
[348745183,1736766644525,-500.0,0.00022344,3]
[348745185,1736766644534,-271.88,0.00022344,3]
[348745187,1736766644543,-783.95214376,0.00022383,2]
[348745189,1736766644554,-500.0,0.00022398,3]
[348745191,1736766644564,-500.0,0.00022399,2]
[348745193,1736766644574,-1267.2,0.00022399,3]
[348745195,1736766644583,-547.971,0.0002243,2]
[348745197,1736766644593,-783.95214376,0.00022452,2]
[348745199,1736766644603,-500.0,0.00022463,3]
[348745201,1736766644611,-645.47,0.00022463,3]
[348745203,1736766644621,-500.0,0.00022464,3]
[348745205,1736766644631,-500.0,0.00022464,3]
[348745207,1736766644640,-500.0,0.00022464,3]
[348745209,1736766644650,-500.0,0.00022464,3]
[348745211,1736766644659,-500.0,0.00022464,3]
[348745213,1736766644668,-396.91092543,0.00022464,3]
[348745215,1736766644678,-500.0,0.00022464,3]
[348745217,1736766644687,-500.0,0.00022464,3]
[348745219,1736766644696,-500.0,0.00022464,3]
[348745221,1736766644706,-500.0,0.00022464,3]
[348745223,1736766644715,-500.0,0.00022464,3]
[348745225,1736766644725,-500.0,0.00022464,3]
[348745227,1736766644734,-500.0,0.00022464,3]
[348745229,1736766644744,-500.0,0.00022464,3]
[348745231,1736766644754,-500.0,0.00022464,3]
[348745233,1736766644763,-500.0,0.00022464,3]
[348745235,1736766644773,-500.0,0.00022464,3]
[348745237,1736766644782,-500.0,0.00022464,3]
[348745239,1736766644791,-500.0,0.00022464,3]
[348745241,1736766644800,-500.0,0.00022464,3]
[348745243,1736766644810,-510.1,0.00022464,3]
[348745245,1736766644819,-500.0,0.00022464,3]
[348745247,1736766644829,-500.0,0.00022464,3]
[348745249,1736766644840,-500.0,0.00022464,3]
[348745251,1736766644865,-500.0,0.00022464,3]
[348745253,1736766644892,-500.0,0.00022464,3]
[348745255,1736766644921,-500.0,0.00022464,3]
[348745257,1736766644951,-500.0,0.00022464,3]
[348745259,1736766644978,-500.0,0.00022464,3]
[348745261,1736766645001,-500.0,0.00022464,3]
[348745263,1736766645024,-532.52,0.00022464,3]
[348745265,1736766645049,-500.0,0.00022464,3]
[348745267,1736766645076,-151.0,0.00022464,7]
[348745269,1736766645100,-342.46185693,0.00022464,3]
[348745271,1736766645122,-151.0,0.00022464,2]
[348745273,1736766645140,-500.0,0.00022464,3]
[348745275,1736766645150,-500.0,0.00022464,3]
[348745277,1736766645159,-500.0,0.00022464,3]
[348745279,1736766645169,-5760.43,0.00022464,3]
[348745281,1736766645179,-500.0,0.00022464,3]
[348745283,1736766645188,-500.0,0.00022464,3]
[348745285,1736766645199,-2788.86,0.00022465,3]
[348745287,1736766645208,-649.23,0.00022465,3]
[348745289,1736766645218,-500.0,0.00022473,2]
[348745291,1736766645227,-520.05145128,0.00022473,2]
[348745293,1736766645236,-220.50177035,0.00022473,2]
[348745295,1736766645246,-266.8876865,0.00022473,2]
[348745297,1736766645255,-419.06804617,0.00022473,2]
[348745299,1736766645264,-500.0,0.00022499,3]
[348745301,1736766645273,-500.0,0.00022499,3]
[348745304,1736766645292,-1579.46,0.000225,10]
[348745306,1736766645302,-151.0,0.000225,7]
[348745307,1736766645311,-1808.61,0.000225,14]
[348745309,1736766645322,-4653.1,0.000225,14]
[348745312,1736766645331,-151.21031028,0.00022514,2]
[348745314,1736766645340,-600.81333066,0.00022514,2]
[348745316,1736766645350,-500.0,0.00022514,2]
[348745318,1736766645359,-500.0,0.00022514,2]
[348745320,1736766645369,-429.00242038,0.00022514,2]
[348745322,1736766645378,-500.0,0.00022514,2]
[348745323,1736766645388,-158.03900889,0.00022514,2]
[348745325,1736766645398,-328.19587189,0.00022514,2]
[348745328,1736766645407,-500.0,0.00022514,2]
[348745329,1736766645417,-500.0,0.00022514,2]
[348745331,1736766645427,-162.64739196,0.00022514,2]